Cogmind - Beta 11.1 @@@ ROGUE MODE // 2022.05.26 @ 14:21:00 Player: btmk16 Result: Destroyed by D-53 Grenadier with Mini Grenade Launcher Performance ------------- Evolutions (0) 0 Regions Visited (2) 400 Robots Destroyed (21) 105 Value Destroyed (554) 554 Prototype IDs (2) 40 Alien Tech Used (0) 0 Bonus (0) 0 TOTAL SCORE: 1099 Bonus ------- None Cogmind --------- Core Integrity 0/250 Matter 173/300 Energy 208/250 System Corruption 0% Temperature Cool (0) Movement Walking (400) Ox4 Location -10/Mines Parts ------- > --- POWER (1) -------- Ion Engine > --- PROPULSION (2) --- Aluminum Leg Wheel > --- UTILITY (2) ------ High-capacity Storage Unit Targeting Computer > --- WEAPON (2) ------- Medium Laser Medium Laser > --- INVENTORY (20) --- Ion Engine Ion Engine Ion Engine Light Ion Engine Aluminum Leg Heat Sink High-capacity Storage Unit Medium Matter Pod (0) Large Matter Pod (0) Sensor Array Sensor Array Targeting Computer Light Armor Plating Rocket Launcher Rocket Launcher Peak State ------------ > --- POWER ------------ Ion Engine > --- PROPULSION ------- Wheel Wheel > --- UTILITY ---------- High-capacity Storage Unit Targeting Computer > --- WEAPON ----------- Medium Laser Rocket Launcher > --- INVENTORY -------- Ion Engine Ion Engine Ion Engine Light Ion Engine Aluminum Leg Aluminum Leg Wheel Wheel Wheel Heat Sink High-capacity Storage Unit Medium Matter Pod Large Matter Pod Sensor Array Sensor Array Targeting Computer Light Armor Plating Medium Laser Assault Rifle Rocket Launcher [Rating: 10] Favorites ----------- Power Ion Engine Engine Ion Engine Propulsion Wheel Leg Aluminum Leg Wheel Wheel Utility High-capacity Storage Unit Storage High-capacity Storage Unit Processor Targeting Computer Protection Weapon Shielding Weapon Assault Rifle Energy Gun Medium Laser Ballistic Gun Assault Rifle Launcher Rocket Launcher Build | -11 -10 -10 ------- Run | Scr Mat Min Slots Evolved . | . . . Power . | . . . Propulsion . | . . . Utility . | . . . Weapon . | . . . Parts Attached 31 | . 23 8 Power 3 | . 3 . Engine 3 | . 3 . Core . | . . . Reactor . | . . . Propulsion 13 | . 9 4 Treads . | . . . Leg 2 | . 1 1 Wheel 11 | . 8 3 Hover . | . . . Flight . | . . . Utility 4 | . 4 . Device . | . . . Storage 2 | . 2 . Processor 1 | . 1 . Hackware . | . . . Protection 1 | . 1 . Artifact . | . . . Weapon 11 | . 7 4 Energy Gun 3 | . 1 2 Energy Cannon . | . . . Ballistic Gun 7 | . 6 1 Ballistic Cannon . | . . . Launcher 1 | . . 1 Special Weapon . | . . . Impact Weapon . | . . . Slashing Weapon . | . . . Piercing Weapon . | . . . Special Melee Weapon . | . . . Unidentified Prototypes . | . . . Parts Lost 10 | . 5 5 Power . | . . . Propulsion 5 | . 1 4 Utility 1 | . 1 . Weapon 4 | . 3 1 Highest Loss Streak 3 | . 1 3 To Critical Strikes . | . . . Average Slot Usage (%) 97 | . 97 100 Engine 14 | . 14 14 Leg 5 | . 6 . Wheel 22 | . 20 28 Storage 14 | . 14 14 Processor 10 | . 9 14 Protection 2 | . 3 . Energy Gun 8 | . 7 14 Ballistic Gun 19 | . 20 13 Naked Turns . | . . . Heaviest Build 50 | 14 50 49 Greatest Support 20 | 20 20 20 Greatest Overweight (x) 4 | . 4 2 Average Overweight (x) 1 | . 1 2 Largest Inventory Capacity 20 | . 20 20 Average Capacity 17 | . 17 20 Most Carried 20 | . 20 20 Average Carried 14 | . 13 18 Final Capacity 20 | 8 20 20 Final Carried 20 | 6 20 15 Class Distribution -------------------- 100% | Mutant Dominant Class ---------------- Mutant | -10/Materials Mutant | -10/Mines Resources | -11 -10 -10 ----------- Run | Scr Mat Min Matter Collected 725 | 200 492 33 Remotely . | . . . Salvage Created 771 | . 753 18 Parts 39 | . 39 . Haulers Intercepted 2 | . 2 . Recyclers Shooed . | . . . Parts Field Recycled . | . . . Retrieved Matter . | . . . Parts Self-Destructed . | . . . Prevented . | . . . Kills | -11 -10 -10 ------- Run | Scr Mat Min Combat Hostiles Destroyed 25 | . 17 8 Guns 16 | . 14 2 AOE 9 | . 3 6 Classes Destroyed 6 | . 5 1 Worker 1 | . 1 . Tunneler 1 | . 1 . Hauler 2 | . 2 . Swarmer 3 | . 3 . Grunt 14 | . 14 . Assembled 8 | . . 8 Best Kill Streak 8 | . 6 8 Combat Bots Only 8 | . 4 8 Max Kills in Single Turn 3 | . 3 3 Gunslinging . | . . . Exploded 3 | . 3 3 Melee . | . . . Uniques/NPCs Destroyed . | . . . Combat | -11 -10 -10 -------- Run | Scr Mat Min Damage Taken 1340 | . 837 503 Core 269 | . 95 174 Absorbed by Shields . | . . . Redirected to Shielding 54 | . 54 . Core Remaining (%) 100 | 100 . . Volleys Fired 78 | . 63 15 Largest 2 | . 2 2 Hottest 80 | . 80 70 Shots Fired 139 | . 123 16 Gun 135 | . 123 12 Cannon . | . . . Launcher 4 | . . 4 Special . | . . . Kinetic 116 | . 105 11 Thermal 15 | . 14 1 Explosive 4 | . . 4 Electromagnetic 4 | . 4 . Robot Hit Streak 20 | . 20 3 Robot Miss Streak 5 | . 3 5 Penetration Max . | . . . Secondary Targets 1 | . 1 . Max Gunslinging Chain 1 | . 1 . Shots Hit Robots 99 | . 93 6 Core Hits 57 | . 39 18 Critical Kills . | . . . Critical Parts Destroyed 1 | . 1 . Critical Strikes 3 | . 3 . Burn 2 | . 2 . Destroy 1 | . 1 . Melee Attacks . | . . . Impact . | . . . Slashing . | . . . Piercing . | . . . Sneak Attacks . | . . . Combat Hostiles . | . . . Follow-up Attacks . | . . . Damage Inflicted 2083 | . 1512 571 Guns 1287 | . 1224 63 Cannons . | . . . Explosions 796 | . 288 508 Melee . | . . . Ramming . | . . . Kinetic 1088 | . 1025 63 Thermal 463 | . 463 . Explosive 508 | . . 508 Electromagnetic 24 | . 24 . Impact . | . . . Slashing . | . . . Piercing . | . . . Highest Corruption . | . . . Average Corruption . | . . . Corruption Purged . | . . . Corruption Blocked . | . . . Overload Shots . | . . . Overflow Damage 58 | . 47 11 Projectiles . | . . . Explosions 58 | . 47 11 Melee . | . . . Knockbacks . | . . . Impact . | . . . Kinetic . | . . . Secondary . | . . . Self-Inflicted Damage 163 | . 125 38 Shots 3 | . 2 1 Rammed . | . . . Targets Rammed . | . . . Kicked . | . . . Crushed . | . . . Highest Temperature 126 | . 126 10 Average Temperature 37 | . 39 7 Received Heat Transfer 401 | . 381 20 Siege Activations . | . . . Robots Corrupted . | . . . Combat Hostiles . | . . . Parts Fried . | . . . Impact Corruptions . | . . . Robots Melted . | . . . Combat Hostiles . | . . . Parts Melted 2 | . 2 . Heat Transferred 879 | . 879 . Parts Sabotaged . | . . . Parts Stolen . | . . . Parts Stripped . | . . . Power Chain Reactions 1 | . 1 . Missiles Intercepted . | . . . Alert | -11 -10 -10 ------- Run | Scr Mat Min Peak Influence 320 | . 320 176 Initial 105 | . . 105 Average 188 | . 195 156 Maximum Alert Level 1 | . 1 . Low Security (%) 48 | . 37 100 Level 1 51 | . 62 . Level 2 . | . . . Level 3 . | . . . Level 4 . | . . . Level 5 . | . . . High Security . | . . . Max Security . | . . . Squads Dispatched 4 | . 4 . Investigation 3 | . 3 . Extermination . | . . . Reinforcement 1 | . 1 . Assault . | . . . Garrison . | . . . Intercept . | . . . Searches Triggered . | . . . Construction Impeded . | . . . Haulers Reinforced . | . . . Active Scanning Responses . | . . . Cargo Convoy Interrupts . | . . . Stealth | -11 -10 -10 --------- Run | Scr Mat Min Distress Signals 4 | . 4 . Communications Jammed . | . . . Distress Signals . | . . . Times Spotted 52 | . 30 22 Peak Tracking Total 13 | . 6 13 Tactical Retreats 4 | . 2 2 Traps | -11 -10 -10 ------- Run | Scr Mat Min Traps Triggered 3 | . 3 . Indirectly . | . . . Trap Hack Attempts . | . . . Triggered . | . . . Disarmed . | . . . Reprogrammed . | . . . Reused . | . . . Traps Extracted . | . . . Installed . | . . . Triggered . | . . . Machines | -11 -10 -10 ---------- Run | Scr Mat Min Machines Disabled 1 | . 1 . Max in Single Turn 1 | . 1 . Machines Sabotaged . | . . . Garrisons Compromised . | . . . Overloaded Fab Kills . | . . . Hacking | -11 -10 -10 --------- Run | Scr Mat Min Machines Accessed 6 | . 6 . Terminals 6 | . 6 . Fabricators . | . . . Repair Stations . | . . . Recycling Units . | . . . Scanalyzers . | . . . Garrison Access . | . . . Total Hacks 17 | . 17 . Successful 8 | . 8 . Failed 9 | . 9 . Catastrophic 1 | . 1 . Database Lockouts . | . . . Manual 6 | . 6 . Terminals 17 | . 17 . Fabricators . | . . . Repair Stations . | . . . Recycling Units . | . . . Scanalyzers . | . . . Garrison Access . | . . . Terminal Hacks 8 | . 8 . Robot Analysis 1 | . 1 . Prototype ID Bank 1 | . 1 . Level Access Points 1 | . 1 . Branch Access Points 1 | . 1 . Alert Level 2 | . 2 . Locate Traps 1 | . 1 . Registered Components 1 | . 1 . Fabricator Hacks . | . . . Repair Station Hacks . | . . . Recycling Unit Hacks . | . . . Scanalyzer . | . . . Garrison Access Hacks . | . . . Unauthorized Hacks . | . . . Terminals . | . . . Fabricators . | . . . Repair Stations . | . . . Recycling Units . | . . . Scanalyzers . | . . . Garrison Access . | . . . Data Cores Recovered . | . . . Used . | . . . Hacking Detections 4 | . 4 . Full Trace Events 2 | . 2 . Feedback Events . | . . . Feedback Blocked . | . . . Robot Schematics Acquired . | . . . Robots Built . | . . . Authchips . | . . . Time . | . . . Total Robot Build Rating . | . . . Part Schematics Acquired . | . . . Parts Built . | . . . Authchips . | . . . Time . | . . . Total Part Build Rating . | . . . Parts Repaired . | . . . Time . | . . . Parts Recycled . | . . . Recycled Matter . | . . . Retrieved Matter . | . . . Retrieved Components . | . . . Parts Scanalyzed . | . . . Part Schematics Acquired . | . . . Parts Damaged . | . . . Bothacking | -11 -10 -10 ------------ Run | Scr Mat Min Used RIF Installer . | . . . Robots Hacked . | . . . Non-combat . | . . . Combat . | . . . Robot Hacks Applied . | . . . Relay Couplers Released . | . . . Fabnet Peak Effective % . | . . . Robots Rewired . | . . . Allies Hacked . | . . . Hacks Repelled . | . . . Allies | -11 -10 -10 -------- Run | Scr Mat Min Total Allies . | . . . Largest Group . | . . . Highest-Rated Group . | . . . Highest-Rated Ally . | . . . Total Orders . | . . . Ally Attacks . | . . . Total Damage . | . . . Kills . | . . . Allies Corrupted . | . . . Allies Melted . | . . . Intel | -11 -10 -10 ------- Run | Scr Mat Min Robot Analysis Total 1 | . 1 . Derelict Logs Recovered . | . . . Drone Launches . | . . . Drone Recoveries . | . . . Exploration | -11 -10 -10 ------------- Run | Scr Mat Min Turns Passed 1276 | . 1051 225 Spaces Moved 754 | 1 650 103 Core . | . . . Treads . | . . . Legs 184 | 1 183 . Wheels 570 | . 467 103 Hover . | . . . Flight . | . . . Fastest Speed 110 | 120 110 110 Average Speed 112 | 120 113 110 Slowest Speed 140 | 120 140 110 Overloaded Moves . | . . . Propulsion Burnouts . | . . . Robots Hopped . | . . . Cave-ins Triggered . | . . . Exploration Rate (%) 41 | 2 90 31 Regions Visited 2 Branch Regions 1 Pre-discovered Areas . | . . . Known Exits Taken 1 | . 1 . Unknown Exits Taken 1 | 1 . . Scrap Searched . | . . . Spaces Dug . | . . . Terrain Destroyed 68 | . 36 32 Melee . | . . . Projectile . | . . . AOE 68 | . 36 32 Terrain Rammed . | . . . Walls Destroyed . | . . . Machines Disabled . | . . . Actions | -11 -10 -10 --------- Run | Scr Mat Min Total 1034 | . 837 197 Wait 151 | . 80 71 Move 752 | . 649 103 Hop . | . . . Pick Up 14 | . 14 . Fast Attach 7 | . 7 . Attach 8 | . 3 5 Detach . | . . . Swap 16 | . 13 3 Drop 8 | . 8 . Fire 78 | . 63 15 Melee . | . . . Ram . | . . . Kick . | . . . Crush . | . . . Escape Stasis . | . . . Rewire . | . . . Trap . | . . . Miscellaneous . | . . . Route ------- -11/Scrapyard -10/Materials (discovered 4 exits: *Mat x3 / *Min) -10/Mines History --------- Turn | Location | Event 1 | -11/Scrapyard | Discovered new exit (range 0) 1 | -11/Scrapyard | Entered Materials 308 | -10/Materials | Build established: Mutant 524 | -10/Materials | Identified exit to Mines 589 | -10/Materials | Discovered new exit (range 13) 814 | -10/Materials | Discovered new exit (range 14) 867 | -10/Materials | Identified exit to Materials 1052 | -10/Materials | Entered Mines 1067 | -10/Mines | Assembled infested the area 1072 | -10/Mines | Assisted by a Guerilla fighting off Assembled 1077 | -10/Mines | Met a Derelict bent on vengeance 1099 | -10/Mines | Core integrity fell below 50% 1132 | -10/Mines | Destroyed 8 combat bots 1241 | -10/Mines | Found a hidden stash of uninstalled traps 1276 | -10/Mines | Core integrity fell below 20% 1277 | -10/Mines | Destroyed by D-53 Grenadier with Mini Grenade Launcher Last Messages --------------- 01167_ K-01 Serf collects debris. 01173_ R-06 Scavenger collects Lgt. Ion Engine. 01175_ K-01 Serf collects debris. 01190_ O0-03J(g): "TASTE MY VENGEANCE!" 01191_ K-01 Serf collects debris. 01195_ O0-03J(g): "VENGEANCE!" 01204_ K-01 Serf collects debris. 01216_ Acquired 7 matter. 01219_ K-01 Serf collects debris. 01221_ U-05 Engineer lays Concrete. 01222_ K-01 Serf collects debris. 01223_ U-05 Engineer builds a Wall. 01227_ U-05 Engineer lays Concrete. 01229_ K-01 Serf collects debris. 01230_ U-05 Engineer lays Concrete. 01238_ K-01 Serf collects debris. 01241_ A stash of uninstalled traps is collected here! 01271_ Wheel destroyed. 01273_ Assault Rifle destroyed. 01273_ Wheel destroyed. Map ----- +----------------------------------------------------+ | ?????? #?#### #?????????????????????????? | | ??????# ### #?????????????????????????? | | ??????# ## #?????????????????????????? | | #####?#%%# ###### ###????????????????? | | ###%*% # ???????#????????? | | # % ?????????? #????????? | | # #????????????? ###??????? | | %## ###########??# ##?????? | | % ### ### #?????? | | # #?# && #?????? | | ## ####?## #### & #?????? | | ## ##????### ##??#& ##?????? | | ## ##????## #####???# #####??????? | | # #?????# % #???????# ##??????????? | | # #?????# #??####### ##???????????? | | # #?????# k# ### ### #????????????? | | #?????# ## ## #????????????? | | ##?????# #????????????? | | ##????## #????????????? | | #????# #######????????????? | | #????# ##??##?????????????? | | ##????# ## ## ###???????????? | | ##????# ## # ###?????????? | | ##????# % ##?# ### ??????????? | | ###?????# ???#t## ###??????????? | | ##??????# ??????# @ #??????????? | | ???????? ???????##### #?????????? | | ????????????????????# #?????????? | | ????????????????????## #?????????? | | ?????????????????????## dd ????????? | | ?????????????????????? ??????? | | ????????????????????? ##?????? | | ????????????????????? ##??????? | | ???????????????????? ##???????? | | ???????????????????# ##????????? | | ???????????????????## ##?????????? | | ????????????????????# #######??????????? | | ???????????????????? ?????????????????? | | ???????????????????? ?????????????????? | | ????????????????????? ?????????????????? | | ??????????????????????? ?????????????????? | | ??????????????????????????????????????????? | | ??????????????????????????????????????????? | | ??????????????????????????????????????????? | | ??????????????????????????????????????????? | | ??????????????????????????????????????????? | | ??????????????????????????????????????????? | | ??????????????????????????????????????????? | | ??????????????????????????????????????????? | | ??????????????????????????????????????????? | +----------------------------------------------------+ Best States ------------- Heat Dissipation 25 Energy Generation 10 Energy Capacity 250 Matter Stores 300 Matter Capacity 300 Sight Range 16 Terrain Scan Density 10 Weapon Shielding 33 Evasion (%) 55 Targeting Accuracy 5 Item Schematics ----------------- None Robot Schematics ------------------ None Fabricated ------------ Nothing Alien Tech Used ----------------- None Achievements -------------- None Challenges ------------ None Game ------ Seed DrainedHoverLog Manual? 0 Play Time 00:21:02 Cumulative 259.5 hours Start 2022.05.26 @ 11:50:21 End 2022.05.26 @ 14:21:00 Sessions 1 Manual Loads 0 Difficulty Rogue Special Mode None Game No. 350 Rogue 350 Adventurer 0 Explorer 0 Win Type - Total 5 Types 4/0/0/1/0/0/0/0/0 Lore% 67 Gallery% 79 Achievement% 57 Wizard Run 0 Options --------- ASCII 0 Keyboard 1 Movement Vi Keybinds 0 Fullscreen 1 Font 18/SmallcapsGlow Map View 76x50 Tactical HUD 1 Map Filters NONE Filters NONE Steam 1 RUN: d95e884a-96ec-4c14-b17b-b28bee9357fd